bitfinex/quotes_SOLUSD_20220228
["timestamp","ask_amount","ask_price","bid_price","bid_amount"]
[1646057265694,1.70884901,89.325,89.262,39.27292865]
[1646057266396,1.70929461,89.323,89.262,39.27292865]
[1646057266794,18.26453853,89.322,89.262,39.27292865]
[1646057267593,1.42673279,89.332,89.262,39.27292865]
[1646057267993,18.26453853,89.331,89.262,39.27292865]
[1646057268198,1.68665991,89.33,89.262,39.27292865]
[1646057268394,1.47670586,89.329,89.262,39.27292865]
[1646057268797,18.26453853,89.328,89.262,39.27292865]
[1646057269094,45.32593403,89.33,89.262,39.27292865]
[1646057269095,18.26453853,89.329,89.262,39.27292865]
[1646057269295,18.26453853,89.329,89.263,2.74678921]
[1646057269794,18.26453853,89.329,89.262,39.27292865]
[1646057270396,18.26453853,89.329,89.263,2.74678921]
[1646057270596,18.26453853,89.329,89.263,114.44678921]
[1646057270796,18.26453853,89.348,89.263,114.44678921]
[1646057270997,18.26453853,89.348,89.264,2.74678921]
[1646057271195,19.83067356,89.359,89.264,2.74678921]
[1646057271400,49.05484271,89.358,89.264,2.74678921]
[1646057271595,1.57411555,89.357,89.264,2.74678921]
[1646057271996,18.26453853,89.356,89.264,2.74678921]
[1646057272194,1.73179196,89.355,89.264,143.41159404]
[1646057272595,1.73179196,89.355,89.265,2.74678921]
[1646057272794,18.26453853,89.354,89.281,4.33070037]
[1646057272996,1.58215659,89.353,89.282,24.4017]
[1646057273596,18.26453853,89.352,89.282,24.4017]
[1646057274197,18.26453853,89.355,89.283,2.74678921]
[1646057274396,18.26453853,89.351,89.283,114.44678921]
[1646057274598,18.26453853,89.351,89.283,2.74678921]
[1646057274798,18.26453853,89.357,89.284,2.74678921]
[1646057276199,1.39273611,89.356,89.284,2.74678921]
[1646057276402,1.39273611,89.356,89.282,46.9417]
[1646057276800,18.26453853,89.355,89.282,46.9417]
[1646057277100,1.73153167,89.354,89.282,46.9417]
[1646057277801,18.26453853,89.353,89.282,46.9417]
[1646057278000,1.76644478,89.352,89.282,46.9417]
[1646057278601,18.26453853,89.351,89.282,46.9417]
[1646057278801,1.80744799,89.35,89.282,46.9417]
[1646057279001,18.26453853,89.357,89.282,46.9417]
[1646057279204,1.50510023,89.356,89.282,46.9417]
[1646057279603,111.7,89.356,89.282,46.9417]
[1646057279804,111.7,89.354,89.254,4.479]
[1646057280034,111.7,89.352,89.254,4.479]
[1646057280237,1.3785068,89.351,89.254,4.479]
[1646057280636,1.65146955,89.348,89.255,86.36868965]
[1646057280837,1.49456082,89.346,89.255,86.36868965]
[1646057281436,52.43397138,89.344,89.255,86.36868965]
[1646057281838,20.05379957,89.343,89.256,2.74678921]
[1646057282036,1.48139091,89.342,89.26,16.14]
[1646057282236,19.74592944,89.342,89.26,16.14]
[1646057282437,1.74876935,89.341,89.26,18.88678921]
[1646057282637,20.01330788,89.341,89.26,18.88678921]
[1646057282936,20.09827981,89.34,89.26,18.88678921]
[1646057283136,1.38962372,89.339,89.26,18.88678921]
[1646057283337,19.65416225,89.339,89.26,18.88678921]
[1646057283538,1.7393656,89.338,89.26,18.88678921]
[1646057283739,20.00390413,89.338,89.26,18.88678921]
[1646057283942,1.36473235,89.337,89.26,18.88678921]
[1646057284139,1.36473235,89.337,89.261,111.7]
[1646057284140,18.26453853,89.337,89.261,111.7]
[1646057284342,18.26453853,89.337,89.261,140.27297614]
[1646057284540,18.26453853,89.359,89.269,111.7]
[1646057284740,18.26453853,89.359,89.28,16.14]
[1646057284941,19.98061171,89.371,89.28,16.14]
[1646057285139,49.63927701,89.364,89.283,111.7]
[1646057285539,18.26453853,89.363,89.284,2.74678921]
[1646057285740,18.26453853,89.363,89.285,47.9503]
[1646057285941,18.26453853,89.363,89.286,111.7]
[1646057286141,18.26453853,89.363,89.301,111.7]
[1646057286341,18.26453853,89.366,89.3,16.14]
[1646057286541,18.26453853,89.366,89.301,23.4177]
[1646057286744,18.26453853,89.392,89.302,2.74678921]
[1646057287044,18.26453853,89.392,89.303,36.92398965]
[1646057287045,1.53627092,89.39,89.303,36.92398965]
[1646057287441,18.26453853,89.389,89.303,151.37077886]
[1646057288341,18.26453853,89.39,89.303,151.37077886]
[1646057288541,18.26453853,89.39,89.309,111.7]
[1646057288741,18.26453853,89.39,89.321,111.7]
[1646057289142,1.6595477,89.394,89.322,2.74678921]
[1646057289343,1.6595477,89.394,89.323,45.8474]
[1646057289545,1.6595477,89.394,89.324,6.67963937]
[1646057289742,1.6595477,89.394,89.324,9.42642858]
[1646057289942,1.6595477,89.394,89.325,2.74678921]
[1646057290142,1.6595477,89.394,89.331,111.7]
[1646057290342,1.6595477,89.394,89.33,16.14]
[1646057290543,1.6595477,89.394,89.332,2.74678921]
[1646057290743,49.29413909,89.393,89.332,2.74678921]
[1646057290941,1.48595908,89.392,89.332,2.74678921]
[1646057291143,1.48595908,89.392,89.33,16.14]
[1646057291343,1.48595908,89.392,89.324,6.67963937]
[1646057291542,18.32223107,89.391,89.324,6.67963937]
[1646057291743,1.81693482,89.39,89.324,6.67963937]
[1646057292343,18.32223107,89.389,89.324,6.67963937]
[1646057292544,1.58240066,89.388,89.324,6.67963937]
[1646057293143,18.32223107,89.387,89.324,6.67963937]
[1646057293344,1.72411252,89.386,89.324,6.67963937]
[1646057294143,1.6595477,89.394,89.325,2.74678921]
[1646057294344,1.6595477,89.394,89.33,16.14]
[1646057294544,1.6595477,89.394,89.331,111.7]
[1646057294747,1.6595477,89.394,89.332,4.476]
[1646057295243,1.6595477,89.394,89.332,2.74678921]
[1646057295443,1.6595477,89.394,89.333,2.74678921]
[1646057297244,1.6595477,89.394,89.335,111.7]
[1646057297646,1.6595477,89.394,89.336,2.74678921]
[1646057297846,1.6595477,89.394,89.34,16.14]
[1646057298047,1.6595477,89.394,89.341,30.7608716]
[1646057298248,1.6595477,89.394,89.341,33.50766081]
[1646057298447,1.8650785,89.432,89.342,111.7]
[1646057298649,1.8650785,89.432,89.343,4.474]
[1646057298847,1.51692997,89.43,89.344,111.7]
[1646057299050,1.51692997,89.43,89.346,111.7]
[1646057299248,51.20560903,89.429,89.36,16.14]
[1646057299550,1.50120044,89.428,89.362,11.18320972]
[1646057299951,1.50120044,89.428,89.363,2.74678921]
[1646057300650,1.50120044,89.428,89.362,11.18320972]
[1646057301653,18.31414823,89.427,89.362,11.18320972]
[1646057301849,1.81241684,89.425,89.362,11.18320972]
[1646057302652,130.01414823,89.424,89.362,11.18320972]
[1646057302851,1.70898095,89.423,89.362,11.18320972]
[1646057303250,18.31414823,89.422,89.362,11.18320972]
[1646057303550,1.71034283,89.421,89.362,11.18320972]
[1646057303749,1.71034283,89.421,89.364,0.56676279]
[1646057304356,1.85527087,89.427,89.364,0.56676279]
[1646057304954,16.7756,89.451,89.364,0.56676279]
[1646057305156,1.39843195,89.449,89.364,3.313552]
[1646057305352,1.76587773,89.448,89.364,3.313552]
[1646057305756,1.35668609,89.446,89.364,3.313552]
[1646057305957,55.32659558,89.446,89.364,3.313552]
[1646057306156,20.00060652,89.445,89.364,3.313552]
[1646057306375,1.86526651,89.444,89.364,3.313552]
[1646057306575,20.1869523,89.444,89.364,3.313552]
[1646057306775,1.42465078,89.443,89.364,3.313552]
[1646057306978,19.74633657,89.443,89.364,3.313552]
[1646057307178,1.49711727,89.442,89.364,3.313552]
[1646057307477,1.51371056,89.441,89.364,3.313552]
[1646057308778,1.51371056,89.441,89.366,0.56649291]
[1646057308978,1.51371056,89.441,89.37,16.14]
[1646057309580,1.41820203,89.439,89.37,16.14]
[1646057310482,1.7939983,89.444,89.37,16.14]
[1646057311080,18.29844065,89.443,89.37,16.14]
[1646057311279,1.59101606,89.442,89.37,16.14]
[1646057311881,18.29844065,89.441,89.37,16.14]
[1646057312081,1.45700497,89.44,89.37,16.14]
[1646057312683,18.29844065,89.439,89.37,16.14]
[1646057312886,1.35951046,89.438,89.37,16.14]
[1646057313683,1.69772497,89.445,89.37,16.14]
[1646057314083,113.39772497,89.445,89.37,16.14]
[1646057314285,1.60003237,89.444,89.372,0.56568336]
[1646057317292,1.60003237,89.444,89.373,2.74678921]
[1646057318294,1.60003237,89.444,89.374,23.7568]
[1646057318995,1.60003237,89.444,89.374,24.32221354]
[1646057319196,1.60003237,89.444,89.375,2.74678921]
[1646057319398,1.60003237,89.444,89.38,16.14]
[1646057320198,1.67916172,89.442,89.374,0.56541354]
[1646057320600,111.7,89.44,89.374,0.56541354]
[1646057320798,111.7,89.438,89.374,0.56541354]
[1646057320996,111.7,89.436,89.374,0.56541354]
[1646057321199,111.7,89.434,89.374,0.56541354]
[1646057321401,111.7,89.431,89.374,0.56541354]
[1646057321598,1.51226823,89.43,89.374,0.56541354]
[1646057323501,1.50502153,89.442,89.374,0.56541354]
[1646057323699,24.3589,89.476,89.374,0.56541354]
[1646057323700,2.74678921,89.455,89.374,0.56541354]
[1646057323999,111.7,89.469,89.374,0.56541354]
[1646057324199,111.7,89.467,89.374,0.56541354]
[1646057324399,1.58341867,89.466,89.374,0.56541354]
[1646057324600,116.173,89.465,89.371,25.41856669]
[1646057324800,1.48769143,89.464,89.371,2.52256669]
[1646057325001,178.66,89.461,89.371,2.52256669]
[1646057325201,111.7,89.459,89.371,2.52256669]
[1646057325401,111.7,89.457,89.371,2.52256669]
[1646057325606,6.20581725,89.456,89.371,2.52256669]
[1646057325802,4.22611471,89.463,89.371,2.52256669]
[1646057327303,4.473,89.462,89.371,2.52256669]
[1646057327504,4.22611471,89.463,89.371,2.52256669]
[1646057328003,4.22611471,89.463,89.372,26.42908921]
[1646057328404,4.22611471,89.463,89.373,25.72338921]
[1646057328904,4.22611471,89.463,89.374,2.74678921]
[1646057329305,4.22611471,89.463,89.373,22.9766]
[1646057329906,4.22611471,89.463,89.373,25.72338921]
[1646057330809,4.22611471,89.463,89.373,22.9766]
[1646057332006,1.4793255,89.463,89.373,22.9766]
[1646057333208,1.4793255,89.463,89.374,2.74678921]
[1646057333908,1.4793255,89.463,89.373,22.9766]
[1646057335511,4.473,89.462,89.373,22.9766]
[1646057336314,116.173,89.462,89.373,22.9766]
[1646057336513,1.44444357,89.461,89.373,22.9766]
[1646057338513,1.44444357,89.461,89.374,2.74678921]
[1646057348748,180.10444357,89.461,89.374,2.74678921]
[1646057348950,111.7,89.459,89.373,22.9766]
[1646057349149,1.56950614,89.458,89.373,22.9766]
[1646057349347,111.7,89.457,89.373,22.9766]
[1646057349549,111.7,89.455,89.373,22.9766]
[1646057349749,111.7,89.453,89.373,22.9766]
[1646057349948,111.7,89.451,89.371,2.52256669]
[1646057350148,111.7,89.449,89.371,2.52256669]
[1646057350348,111.7,89.447,89.371,2.52256669]
[1646057350549,178.66,89.441,89.34,16.14]
[1646057350749,178.66,89.439,89.331,47.5906]
[1646057351048,111.7,89.437,89.331,47.5906]
[1646057351250,111.7,89.435,89.331,47.5906]
[1646057351451,111.7,89.433,89.331,47.5906]
[1646057351649,111.7,89.431,89.332,40.64186458]
[1646057351948,111.7,89.429,89.332,40.64186458]
[1646057352148,1.59266109,89.428,89.332,40.64186458]
[1646057352349,4.475,89.427,89.332,40.64186458]
[1646057352551,111.7,89.426,89.332,40.64186458]
[1646057352750,111.7,89.424,89.332,40.64186458]
[1646057352949,111.7,89.422,89.332,40.64186458]
[1646057353150,1.85484088,89.421,89.332,40.64186458]
[1646057354053,1.56576462,89.43,89.332,40.64186458]
[1646057354250,111.7,89.418,89.332,40.64186458]
[1646057354450,1.72868414,89.417,89.332,40.64186458]
[1646057357154,1.45636142,89.437,89.334,2.86770746]
[1646057357356,113.15850468,89.438,89.333,2.74678921]
[1646057357654,1.45850468,89.438,89.335,2.74678921]
[1646057358054,58.80064408,89.437,89.335,2.74678921]
[1646057358256,1.66239717,89.436,89.335,2.74678921]
[1646057358459,1.66239717,89.436,89.335,5.02564317]
[1646057358857,1.66239717,89.436,89.336,2.74678921]
[1646057359160,1.66239717,89.436,89.35,16.14]
[1646057359358,1.66239717,89.436,89.351,24.54781674]
[1646057359561,113.36239717,89.436,89.351,27.29460595]
[1646057359759,1.77726155,89.435,89.352,2.74678921]
[1646057360161,4.52405076,89.435,89.351,24.54781674]
[1646057360360,111.7,89.433,89.351,24.54781674]
[1646057360661,111.7,89.431,89.351,24.54781674]
[1646057360860,111.7,89.429,89.351,24.54781674]
[1646057361060,1.35573619,89.428,89.351,24.54781674]
[1646057361262,1.66741618,89.426,89.351,24.54781674]
[1646057361667,111.7,89.427,89.351,24.54781674]
[1646057361668,4.474,89.433,89.351,24.54781674]
[1646057361862,1.42369287,89.436,89.351,27.29460595]
[1646057362462,18.49720311,89.435,89.351,27.29460595]
[1646057362663,1.56186956,89.434,89.351,24.54781674]
[1646057363465,2.74678921,89.433,89.351,24.54781674]
[1646057363665,111.7,89.432,89.351,24.54781674]
[1646057363866,111.7,89.43,89.351,24.54781674]
[1646057364067,111.7,89.428,89.353,0.56824731]
[1646057364271,1.42686574,89.427,89.353,0.56824731]
[1646057365767,1.79845009,89.426,89.353,0.56824731]
[1646057365968,1.83938862,89.435,89.353,0.56824731]
[1646057366602,18.5205845,89.434,89.353,0.56824731]
[1646057366802,1.59946751,89.433,89.353,0.56824731]
[1646057367401,1.64088981,89.431,89.353,0.56824731]
[1646057367802,1.64069987,89.436,89.353,0.56824731]
[1646057368201,18.53603015,89.435,89.353,0.56824731]
[1646057368404,1.356854,89.434,89.353,0.56824731]
[1646057368805,1.356854,89.434,89.354,2.74678921]
[1646057369202,1.356854,89.434,89.355,0.56797737]
[1646057369404,1.356854,89.434,89.36,16.14]
[1646057370404,1.37643784,89.446,89.361,2.74678921]
[1646057370605,1.76798698,89.456,89.362,111.7]
[1646057370805,1.80361616,89.489,89.363,2.89364451]
[1646057371004,1.80361616,89.489,89.364,111.7]
[1646057371204,1.80361616,89.489,89.365,2.81661159]
[1646057371407,76.2897572,89.488,89.367,111.7]
[1646057371604,1.51480921,89.487,89.381,111.7]
[1646057371804,18.54799068,89.487,89.383,111.7]
[1646057372006,18.54799068,89.487,89.384,3.06518516]
[1646057372204,1.74948802,89.513,89.385,111.7]
[1646057372404,4.471,89.512,89.401,111.7]
[1646057372606,18.5697143,89.512,89.403,111.7]
[1646057372804,1.36721617,89.511,89.403,111.7]
[1646057373006,1.36721617,89.511,89.404,2.74678921]
[1646057373205,57.4117092,89.51,89.406,111.7]
[1646057373405,1.72436992,89.509,89.42,16.14]
[1646057373605,1.72436992,89.509,89.421,32.52609794]
[1646057374407,18.56217376,89.508,89.421,32.52609794]
[1646057374608,1.68974579,89.507,89.421,32.52609794]
[1646057375207,18.56217376,89.506,89.421,32.52609794]
[1646057375409,1.67800864,89.505,89.421,32.52609794]
[1646057376008,18.56217376,89.504,89.421,32.52609794]
[1646057376207,1.86665738,89.503,89.421,32.52609794]
[1646057376409,18.56217376,89.502,89.421,32.52609794]
[1646057376607,1.39448113,89.501,89.421,32.52609794]
[1646057377511,1.49999584,89.509,89.421,32.52609794]
[1646057378212,1.4587709,89.507,89.421,32.52609794]
[1646057378413,1.43311934,89.506,89.421,32.52609794]
[1646057378614,1.35093585,89.504,89.423,0.55880658]
[1646057379013,1.58307003,89.501,89.423,0.55880658]
[1646057379314,111.7,89.499,89.423,0.55880658]
[1646057379515,1.76454196,89.498,89.423,0.55880658]
[1646057379715,111.7,89.497,89.423,0.55880658]
[1646057380020,111.7,89.495,89.423,0.55880658]
[1646057380219,1.75275986,89.494,89.423,0.55880658]
[1646057380617,111.7,89.492,89.423,0.55880658]
[1646057380817,1.54448488,89.491,89.423,0.55880658]
[1646057381117,111.7,89.49,89.423,0.55880658]
[1646057381417,111.7,89.488,89.423,0.55880658]
[1646057381617,1.8746301,89.487,89.423,0.55880658]
[1646057382419,1.5713679,89.494,89.423,0.55880658]
[1646057383021,18.52492542,89.493,89.423,0.55880658]
[1646057383221,113.22747859,89.492,89.423,0.55880658]
[1646057383425,1.66487866,89.491,89.423,0.55880658]
[1646057383622,1.75344249,89.489,89.423,0.55880658]
[1646057384123,4.471,89.488,89.382,16.8652]
[1646057384324,111.7,89.487,89.383,63.51413161]
[1646057384524,111.7,89.485,89.383,63.51413161]
[1646057384725,1.38071016,89.484,89.383,63.51413161]
[1646057385052,111.7,89.482,89.383,63.51413161]
[1646057385257,111.7,89.48,89.383,63.51413161]
[1646057385447,1.64097068,89.479,89.383,63.51413161]
[1646057386150,2.74678921,89.496,89.384,114.44678921]
[1646057386351,1.48210888,89.504,89.39,201.8]
[1646057386547,1.48210888,89.504,89.4,16.14]
[1646057386746,1.48210888,89.504,89.401,47.5439]
[1646057386950,1.48210888,89.504,89.402,2.72842431]
[1646057387147,51.70751482,89.503,89.403,1.11094971]
[1646057387350,1.76912521,89.502,89.403,3.85773892]
[1646057387552,1.76912521,89.502,89.403,6.19474986]
[1646057387853,1.76912521,89.502,89.404,2.74678921]
[1646057388348,111.7,89.502,89.404,2.74678921]
[1646057388550,1.57987976,89.501,89.403,1.11094971]
[1646057388849,1.7902466,89.499,89.403,1.11094971]
[1646057389049,22.94954949,89.498,89.403,1.11094971]
[1646057389249,1.69046911,89.496,89.403,1.11094971]
[1646057389852,1.87250748,89.494,89.403,1.11094971]
[1646057390154,2.74678921,89.493,89.403,1.11094971]
[1646057390356,111.7,89.492,89.403,1.11094971]
[1646057390552,1.7859327,89.491,89.403,1.11094971]
[1646057390752,111.7,89.49,89.403,1.11094971]
[1646057390951,111.7,89.488,89.403,1.11094971]
[1646057391153,1.58338091,89.487,89.403,1.11094971]
[1646057394358,1.58338091,89.487,89.405,0.56123278]
[1646057395858,1.58338091,89.487,89.41,16.14]
[1646057397963,1.58338091,89.487,89.411,2.74678921]
[1646057398557,1.58338091,89.487,89.412,22.5075]
[1646057399359,1.63001248,89.503,89.412,22.5075]
[1646057399858,1.5071022,89.5,89.412,22.5075]
[1646057400359,1.39317046,89.497,89.412,22.5075]
[1646057403865,1.5957782,89.495,89.412,22.5075]
[1646057404365,111.7,89.493,89.412,22.5075]
[1646057404567,111.7,89.491,89.412,22.5075]
[1646057404866,1.85711657,89.49,89.414,0.56001956]
[1646057405065,4.60390578,89.49,89.414,0.56001956]
[1646057405265,1.46164919,89.487,89.414,0.56001956]
[1646057405667,2.74678921,89.486,89.414,0.56001956]
[1646057405969,1.79625668,89.483,89.414,0.56001956]
[1646057408368,44.29208282,89.485,89.414,0.56001956]
[1646057408570,1.79373832,89.503,89.414,0.56001956]
[1646057409174,1.79373832,89.503,89.412,39.47944999]
[1646057409370,1.79373832,89.503,89.413,111.7]
[1646057409571,55.78237753,89.512,89.415,2.74678921]
[1646057409770,1.38724906,89.511,89.43,16.14]
[1646057409970,1.38724906,89.511,89.432,36.41366301]
[1646057410370,111.7,89.511,89.432,36.41366301]
[1646057410570,1.65158264,89.51,89.432,36.41366301]
[1646057412776,1.6786684,89.523,89.433,111.7]
[1646057412975,1.58945478,89.538,89.433,111.7]
[1646057413274,1.58945478,89.538,89.432,36.41366301]
[1646057413678,21.15420641,89.537,89.433,111.7]
[1646057413874,57.54624176,89.536,89.433,111.7]
[1646057414074,1.48799792,89.535,89.433,111.7]
[1646057414877,113.18799792,89.535,89.432,36.41366301]
[1646057415078,1.64281444,89.534,89.432,36.41366301]
[1646057418884,1.64281444,89.534,89.433,4.47]
[1646057419379,1.64281444,89.534,89.434,2.74678921]
[1646057419581,1.64281444,89.534,89.435,4.47]
[1646057419779,1.64281444,89.534,89.45,16.14]
[1646057419980,1.64281444,89.534,89.452,5.53041831]
[1646057420180,24.52415172,89.533,89.452,5.53041831]
[1646057420479,18.40170861,89.532,89.452,5.53041831]
[1646057420679,1.69251332,89.531,89.452,5.53041831]
[1646057420881,140.66345425,89.531,89.452,5.53041831]
[1646057421080,1.6433534,89.53,89.452,5.53041831]
[1646057421680,111.7,89.528,89.452,5.53041831]
[1646057421879,1.84450684,89.527,89.452,5.53041831]
[1646057422082,111.7,89.526,89.452,5.53041831]
[1646057422279,1.40775456,89.525,89.452,5.53041831]
[1646057423379,1.55702045,89.534,89.452,5.53041831]
[1646057423780,111.7,89.532,89.452,5.53041831]
[1646057423982,1.36325812,89.531,89.452,5.53041831]
[1646057424385,1.36325812,89.531,89.454,0.55439516]
[1646057426583,111.7,89.529,89.454,0.55439516]
[1646057426781,1.38706652,89.528,89.454,0.55439516]
[1646057427080,1.73138436,89.533,89.454,0.55439516]
[1646057427481,1.66102115,89.541,89.454,0.55439516]
[1646057427880,24.9845,89.562,89.454,0.55439516]
[1646057427881,1.85447807,89.561,89.455,2.74678921]
[1646057428384,18.43924356,89.56,89.459,111.7]
[1646057428582,45.92568753,89.583,89.471,111.7]
[1646057428782,1.61845918,89.582,89.475,111.7]
[1646057429084,18.44128485,89.582,89.481,114.30958778]
[1646057429285,18.44128485,89.582,89.482,7.05387152]
[1646057429481,1.45160144,89.581,89.482,7.05387152]
[1646057429683,0.56073638,89.603,89.483,22.9574]
[1646057429882,0.56073638,89.603,89.49,16.14]
[1646057430082,0.56073638,89.603,89.491,10.27863769]
[1646057430288,18.44025251,89.602,89.492,111.7]
[1646057430482,1.70919101,89.601,89.493,138.19888899]
[1646057430685,1.70919101,89.601,89.494,7.1205173]
[1646057431085,18.44025251,89.6,89.495,22.931]
[1646057431284,1.85634418,89.599,89.51,16.14]
[1646057431484,54.57739057,89.598,89.512,31.13181814]
[1646057431688,1.43947071,89.597,89.512,31.13181814]
[1646057434995,54.57739057,89.598,89.513,2.74678921]
[1646057435198,0.56073638,89.603,89.513,2.74678921]
[1646057435199,1.6016096,89.597,89.513,2.74678921]
[1646057435397,0.56073638,89.603,89.513,2.74678921]
[1646057436598,0.56073638,89.603,89.514,4.466]
[1646057436999,0.56073638,89.603,89.515,114.44678921]
[1646057437299,0.56073638,89.603,89.531,111.7]
[1646057437503,0.56073638,89.603,89.533,111.7]
[1646057437901,0.56073638,89.603,89.535,111.7]
[1646057438100,0.56073638,89.603,89.536,4.465]
[1646057438401,1.51383605,89.667,89.552,66.96]
[1646057438601,112.6,89.672,89.555,114.42290639]
[1646057438802,16.984,89.692,89.561,111.7]
[1646057439001,22.43124735,89.686,89.57,16.14]
[1646057439200,58.92496974,89.684,89.58,16.14]
[1646057439403,117.67608016,89.683,89.58,16.14]
[1646057439600,1.68507497,89.682,89.58,16.14]
[1646057439801,1.59700392,89.68,89.58,16.14]
[1646057440001,4.462,89.679,89.58,16.14]
[1646057440202,111.7,89.678,89.58,16.14]
[1646057440502,1.42982572,89.674,89.572,29.13975072]
[1646057440703,4.463,89.673,89.572,29.13975072]
[1646057440902,111.7,89.672,89.571,46.1368]
[1646057441102,178.66,89.67,89.571,46.1368]
[1646057441311,5.81385082,89.671,89.528,2.76056395]
[1646057441312,178.66,89.668,89.528,2.76056395]
[1646057441514,1.7317525,89.667,89.55,16.14]
[1646057441714,178.66,89.665,89.55,16.14]
[1646057442014,1.80564328,89.662,89.551,28.60470476]
[1646057442213,111.7,89.659,89.551,28.60470476]
[1646057442413,111.7,89.657,89.551,28.60470476]
[1646057442614,1.51571852,89.656,89.552,2.62192321]
[1646057442814,2.74678921,89.661,89.553,2.9922512]
[1646057443015,2.74678921,89.66,89.553,2.9922512]
[1646057443215,1.81335331,89.663,89.554,24.0901]
[1646057443516,1.81335331,89.663,89.556,2.36785265]
[1646057443715,1.81335331,89.663,89.57,16.14]
[1646057443915,1.81335331,89.663,89.571,61.4389298]
[1646057444117,1.81335331,89.663,89.572,2.90726345]
[1646057444518,1.81335331,89.663,89.572,114.60726345]
[1646057444718,1.81335331,89.663,89.573,5.15281201]
[1646057444917,1.55812657,89.684,89.573,5.15281201]
[1646057445117,114.758645,89.694,89.573,5.15281201]
[1646057445118,1.84450003,89.692,89.574,2.74678921]
[1646057445317,1.84450003,89.692,89.574,114.44678921]
[1646057445518,1.84450003,89.692,89.575,2.60941678]
[1646057445718,2.74678921,89.696,89.591,111.7]
[1646057445919,111.7,89.694,89.592,53.85085557]
[1646057446118,1.36038856,89.693,89.592,53.85085557]
[1646057446319,4.10717777,89.693,89.592,53.85085557]
[1646057446621,4.10717777,89.693,89.593,2.59860718]
[1646057447023,4.10717777,89.693,89.593,114.29860718]
[1646057447226,4.10717777,89.693,89.594,2.53721582]
[1646057447423,43.21724429,89.695,89.595,66.96]
[1646057447621,43.21724429,89.695,89.6,201.8]
[1646057447823,43.21724429,89.695,89.61,16.14]
[1646057448023,1.86461653,89.716,89.611,49.400621]
[1646057448223,1.46809603,89.722,89.612,114.66303865]
[1646057448426,1.85395754,89.734,89.613,2.2583897]
[1646057448823,22.55187156,89.734,89.613,5.00517891]
[1646057449023,47.69507572,89.733,89.614,14.09409835]
[1646057449223,1.77028003,89.732,89.615,111.7]
[1646057449425,1.77028003,89.732,89.616,2.87343271]
[1646057449626,1.77028003,89.732,89.631,111.7]
[1646057449824,1.80109729,89.746,89.633,111.7]
[1646057450025,16.9581,89.747,89.639,111.7]
[1646057450228,1.60064482,89.746,89.651,111.7]
[1646057450426,16.3647,89.751,89.66,16.14]
[1646057450628,46.27699061,89.745,89.661,2.51016441]
[1646057451027,46.27699061,89.745,89.662,2.74678921]
[1646057451227,1.71152404,89.744,89.662,2.74678921]
[1646057451626,1.71152404,89.744,89.661,2.51016441]
[1646057452230,2.74678921,89.743,89.66,16.14]
[1646057452427,111.7,89.742,89.66,16.14]
[1646057452628,1.5598711,89.741,89.651,28.60470476]
[1646057452830,4.30666031,89.741,89.651,28.60470476]
[1646057453028,1.5598711,89.741,89.651,28.60470476]
[1646057453229,2.74678921,89.74,89.651,28.60470476]
[1646057453430,2.74678921,89.74,89.663,0.70175337]
[1646057454230,4.458,89.739,89.663,0.70175337]
[1646057454631,2.74678921,89.738,89.663,0.70175337]
[1646057456030,25.15591402,89.737,89.663,0.70175337]
[1646057456230,178.66,89.736,89.663,0.70175337]
[1646057456430,178.66,89.732,89.618,22.9152]
[1646057456631,194.8,89.73,89.613,38.37434137]
[1646057456833,178.66,89.728,89.613,38.37434137]
[1646057457033,178.66,89.726,89.613,38.37434137]
[1646057457233,178.66,89.724,89.613,38.37434137]
[1646057457436,111.7,89.709,89.613,38.37434137]
[1646057457633,111.7,89.707,89.613,38.37434137]
[1646057457832,1.83109208,89.706,89.613,38.37434137]
[1646057458233,4.57788129,89.706,89.613,38.37434137]
[1646057458433,2.74678921,89.705,89.613,38.37434137]
[1646057459034,2.74678921,89.705,89.586,46.7182]
[1646057459035,66.96,89.698,89.59,16.14]
[1646057459236,111.7,89.689,89.586,46.7182]
[1646057459435,111.7,89.687,89.586,46.7182]
[1646057459634,5.8875498,89.686,89.586,46.7182]
[1646057459835,111.7,89.685,89.586,46.7182]
[1646057460039,111.7,89.683,89.587,29.2505658]
[1646057460236,111.7,89.681,89.587,29.2505658]
[1646057460436,1.80523156,89.68,89.587,29.2505658]
[1646057460636,4.55202077,89.68,89.587,29.2505658]
[1646057460836,116.162,89.679,89.57,16.14]
[1646057461137,1.5944827,89.668,89.561,22.511]